[Event "German Bundesliga 2023-24"]
[Site "Germany"]
[Date "2024.03.16"]
[Round "12.1"]
[White "Pavlidis, Antonios"]
[Black "Svane, Rasmus"]
[Result "1/2-1/2"]
[ECO "C65"]
[WhiteElo "2566"]
[BlackElo "2646"]
[Annotator "TA"]
[PlyCount "61"]
[EventDate "2023.10.20"]
[EventType "team-tourn"]
[EventCountry "GER"]
[SourceTitle "playchess.com"]
[Source "ChessBase"]
[SourceQuality "1"]
[TimeControl "40/6000+30:3000+30"]

{[%evp 9,61,0,6,1,2,7,22,0,23,25,13,17,27,25,35,19,9,9,13,14,24,35,24,17,10,0,0,0,7,0,5,2,4,4,0,0,2,0,4,0,0,0,0,0,0,0,0,0,0,0,0,0,0,0]} 1. e4 {[%emt 0:00:03]} e5 {[%emt 0:00:04]} 2. Nf3 {[%emt 0:00:07]} Nc6 {[%emt 0:00:06]} 3. Bb5 {[%emt 0:00:13]} Nf6 {[%emt 0:00:30]} 4. d3 {[%emt 0:00:30]} Bc5 {[%emt 0:00:00]} 5. Nbd2 {[%emt 0:00:09]} Nd4 {[%emt 0:02:57]} 6. Nxd4 {[%emt 0:00:22]} Bxd4 {[%emt 0:00:06]} 7. c3 {[%emt 0:00:32]} Bb6 {[%emt 0:00:28] [#]} 8. d4 $1 {[%emt 0:00:23]} c6 {[%emt 0:00:28]} (8... exd4 9. e5) 9. dxe5 {[%emt 0:00:11]} cxb5 {[%emt 0:00:08]} 10. exf6 Qxf6 {[%emt 0:00:07][%csl Gb6][%cal Rf6f2]} 11. O-O {[%emt 0:00:21][%cal Oe4e5]} O-O {[%emt 0:00:09]} 12. Nf3 {[%emt 0:00:32]} d6 {[%emt 0:01:42]} 13. Re1 {[%emt 0:01:14]} Bg4 {[%emt 0:03:46]} 14. Be3 {[%emt 0:06:56]} b4 {[%emt 0:04:29]} 15. Bxb6 {[%emt 0:04:04]} axb6 {[%emt 0:01:20]} 16. cxb4 {[%emt 0:00:10] With the idea Qd4.} Qxb2 {[%emt 0:07:26] The position is equal.} 17. Qd4 {[%emt 0:00:46]} Rxa2 {[%emt 0:02:46]} 18. Rxa2 {[%emt 0:00:05]} Qxa2 {[%emt 0:00:07]} 19. Nh4 {[%emt 0:00:05][%cal Oh2h3]} Qe6 {[%emt 0:02:17]} 20. h3 {[%emt 0:05:01]} Qe7 {[%emt 0:00:32]} 21. hxg4 {[%emt 0:06:36]} Qxh4 {[%emt 0:00:26]} 22. Qxb6 $11 {[%emt 0:10:35][%mdl 4096] Endgame. KQR-KQR} Qe7 {[%emt 0:07:28] [#]} 23. g5 $1 {[%emt 0:23:52]} d5 {[%emt 0:15:51]} (23... g6 24. g3) 24. Qc5 {[%emt 0:05:11]} (24. exd5 $2 {loses.} Qxe1+ 25. Kh2 Qe5+ 26. Kh3 Qxd5 $19 (26... Qxg5 $2 27. Qxb7 Rd8 28. f3 $19)) 24... Qxc5 {[%emt 0:03:16]} 25. bxc5 {[%emt 0:01:01]} dxe4 {[%emt 0:00:05]} 26. Rxe4 {[%emt 0:04:53] KR-KR} Rc8 {[%emt 0:00:17]} 27. Re7 {[%emt 0:00:18]} Kf8 {[%emt 0:00:27]} 28. Rxb7 {[%emt 0:00:05]} Rxc5 {[%emt 0:00:05]} 29. f4 {[%emt 0:00:05]} g6 {[%emt 0:06:15]} 30. Kf2 {[%emt 0:03:19]} Kg7 {[%emt 0:00:11]} 31. g3 {[%emt 0:00:22] A balanced but interesting game.   Weighted Error Value: White=0.03 (flawless) /Black=0.02 (flawless) .  OK:         	White=10    	Black=19} 1/2-1/2

[Event "German Bundesliga 2023-24"]
[Site "Germany"]
[Date "2024.03.16"]
[Round "12.2"]
[White "Bartel, Mateusz"]
[Black "Anton Guijarro, David"]
[Result "1/2-1/2"]
[ECO "C67"]
[WhiteElo "2651"]
[BlackElo "2653"]
[Annotator "TA"]
[PlyCount "119"]
[EventDate "2023.10.20"]
[EventType "team-tourn"]
[EventCountry "GER"]
[SourceTitle "playchess.com"]
[Source "ChessBase"]
[SourceQuality "1"]
[TimeControl "40/6000+30:3000+30"]

{[%evp 12,119,15,23,33,33,31,29,37,31,32,27,34,26,17,19,39,29,52,43,45,41,68,49,69,67,63,71,86,81,76,69,63,81,73,71,371,369,358,364,446,439,535,525,481,333,334,317,320,429,429,441,441,433,433,433,426,147,433,427,437,190,183,195,196,189,185,193,204,167,182,177,194,193,376,366,362,318,288,171,170,170,135,141,152,0,0,0,0,0,0,0,0,0,0,0,0,0,0,0,0,0,0,0,0,0,0,0,0,0]} 1. e4 {[%emt 0:00:03]} e5 {[%emt 0:00:18]} 2. Nf3 {[%emt 0:00:08]} Nc6 {[%emt 0:00:08]} 3. Bb5 {[%emt 0:00:04]} Nf6 {[%emt 0:00:21][%cal Bg8f6,Bf6e4,Be4d6,Bd6f5][%mdl 32]} 4. O-O {[%emt 0:00:13]} Nxe4 {[%emt 0:00:22]} 5. Re1 {[%emt 0:00:05]} Nd6 {[%emt 0:00:13]} 6. Nxe5 {[%emt 0:00:08]} Be7 {[%emt 0:00:17]} 7. Bf1 {[%emt 0:01:00]} Nf5 {[%emt 0:01:48]} 8. Nf3 {[%emt 0:00:54]} O-O {[%emt 0:00:23]} 9. d4 {[%emt 0:01:22]} d5 {[%emt 0:00:08] White has an edge.} 10. c3 {[%emt 0:08:03]} Bd6 {[%emt 0:02:13]} 11. g3 {[%emt 0:01:19]} Re8 {[%emt 0:04:29]} 12. Rxe8+ {[%emt 0:09:42]} Qxe8 {[%emt 0:00:07]} 13. Bd3 {[%emt 0:00:04]} h6 {[%emt 0:04:26]} 14. Nbd2 {[%emt 0:05:54]} Bf8 {[%emt 0:10:13]} 15. Nf1 {[%emt 0:01:16]} Nce7 {[%emt 0:01:23]} 16. Bf4 {[%emt 0:03:26]} c6 {[%emt 0:12:05]} 17. Qc2 {[%emt 0:01:47]} g5 {[%emt 0:08:09]} 18. Be5 {[%emt 0:05:16]} Bg7 $1 {[%emt 0:00:27]} 19. Re1 {[%emt 0:05:35]} f6 {[%emt 0:06:36]} 20. Bc7 $36 {[%emt 0:00:08][%mdl 2048] Black is under strong pressure.} Bf8 {[%emt 0:12:29]} 21. Ne3 {[%emt 0:20:28] White is much more active.} Qd7 {[%emt 0:11:09]} 22. Nxf5 {[%emt 0:01:00]} Nxf5 {[%emt 0:01:01]} 23. Bd8 {[%emt 0:03:40]} Bg7 {[%emt 0:14:07][%mdl 8192] [#]} (23... g4 $16 {was called for.}) 24. Bxf6 $1 $18 {[%emt 0:01:38][%mdl 512]} Qf7 {[%emt 0:06:01]} (24... Bxf6 $2 25. Bxf5 Qxf5 26. Re8+ Kf7 27. Qxf5 Bxf5 28. Rxa8 $18) 25. Bxg7 {[%emt 0:02:11]} Kxg7 {[%emt 0:00:04]} 26. Ne5 {[%emt 0:04:37][%cal Bf3e5,Be5g4,Bg4f6][%mdl 32]} Qf8 {[%emt 0:00:43]} 27. Qe2 {[%emt 0:00:33] f4 is the strong threat.} Nd6 {[%emt 0:01:07]} 28. Qh5 {[%emt 0:08:34]} Bf5 {[%emt 0:04:24] [#] Repels Qg6+} 29. Ng4 $1 {[%emt 0:14:20]} Bxd3 {[%emt 0:01:04]} 30. Qxh6+ {[%emt 0:00:05]} Kg8 {[%emt 0:00:33] ...Qxh6 would now be deadly.} 31. Qxg5+ {[%emt 0:00:06]} Qg7 {[%emt 0:02:02] Black is weak on the dark squares} 32. Nf6+ {[%emt 0:00:07]} Kf8 {[%emt 0:00:39]} (32... Kf7 $2 33. Re7+ Kxe7 34. Qxg7+) 33. Qf4 {[%emt 0:00:06][%csl LRd5,LRd6]} Nf7 {[%emt 0:02:13]} 34. Nd7+ {[%emt 0:00:26]} Kg8 {[%emt 0:00:03][%cal Bf8g8,Bg8f7,Bf7f6,Bf6f5][%mdl 32]} 35. Re7 {[%emt 0:00:25]} Qg6 {[%emt 0:01:06] [#]} 36. Rxf7 {[%emt 0:03:28][%mdl 512]} Qxf7 {[%emt 0:00:20]} 37. Qxf7+ {[%emt 0:00:04]} Kxf7 {[%emt 0:00:03]} 38. Ne5+ {[%emt 0:00:05]} Kf6 {[%emt 0:00:54]} 39. Nxd3 {[%emt 0:00:03][%mdl 4096] Endgame. KR-KN} b6 {[%emt 0:00:51]} 40. f3 {[%emt 0:00:47]} Rc8 {[%emt 0:02:12]} 41. Nf4 {[%emt 0:50:43]} a5 {[%emt 0:05:07][%cal Ba7a5,Ba5a4,Ba4a3][%mdl 32]} 42. Kf2 {[%emt 0:00:00]} Kf5 $2 {[%emt 0:03:16]} (42... Kf7 43. Ke3 Rh8) 43. h4 {[%emt 0:00:00]} a4 {[%emt 0:00:34]} 44. Ne2 {[%emt 0:00:00]} a3 {[%emt 0:03:48]} 45. b3 {[%emt 0:00:00]} (45. bxa3 Ra8 $11) (45. g4+ $142 Kg6 46. b3 (46. bxa3 Ra8 $18)) 45... c5 {[%emt 0:01:38] [#]} 46. Ke3 {[%emt 0:00:00]} Re8+ {[%emt 0:02:05]} 47. Kd2 {[%emt 0:00:00]} Rh8 {[%emt 0:02:04]} 48. Nf4 $2 {[%emt 0:00:00]} (48. g4+ Kf6 $11) ({White should try} 48. Kd3 $16) 48... Rg8 $11 {[%emt 0:00:49] The position is equal.} 49. Nh5 {[%emt 0:00:00]} (49. Nxd5 Rxg3 50. Ne3+ Kf4) 49... Kg6 $1 {[%emt 0:01:33]} 50. g4 {[%emt 0:00:00]} Rf8 {[%emt 0:00:31]} 51. f4 {[%emt 0:00:00][%cal Bf3f4,Bf4f5][%mdl 32] And now f5+ would win.} Rh8 $1 {[%emt 0:02:39]} 52. f5+ {[%emt 0:00:00]} Kf7 {[%emt 0:00:03]} 53. Kd3 {[%emt 0:00:00]} Rh6 {[%emt 0:08:07]} 54. Ke3 {[%emt 0:00:00]} Rh8 {[%emt 0:01:12]} 55. Kd3 {[%emt 0:00:00]} Rh6 {[%emt 0:00:12]} 56. b4 {[%emt 0:00:00]} ({Much less strong is} 56. Ke3 Rh8 $16) 56... cxb4 {[%emt 0:04:55]} 57. cxb4 {[%emt 0:00:00] aiming for b5.} b5 {[%emt 0:00:07]} 58. Ke3 {[%emt 0:00:00]} Rh8 {[%emt 0:01:00]} 59. Kd3 {[%emt 0:00:00]} (59. Kf4 Rc8 60. g5 Rc2 61. g6+ Kg8 62. Nf6+ Kh8 $17) 59... Rh6 {[%emt 0:00:14]} 60. Kd2 {[%emt 0:13:54] Black escapes into a draw.   Weighted Error Value: White=0.21 (precise) /Black=0.19 (very precise) .  Loses game:     	---       	Black=2      Mistake:       	White=3     	Black=1      Inaccurate:     	White=1     	Black=1      OK:         	White=20    	Black=19     Best:        	White=4     	Black=7      Strong:       	---       	Black=3      Brilliant:      	White=1     	---} 1/2-1/2

[Event "German Bundesliga 2023-24"]
[Site "Germany"]
[Date "2024.03.16"]
[Round "12.2"]
[White "Idani, Pouya"]
[Black "L'Ami, Erwin"]
[Result "1/2-1/2"]
[ECO "B12"]
[WhiteElo "2633"]
[BlackElo "2627"]
[Annotator "TA"]
[PlyCount "92"]
[EventDate "2023.10.20"]
[EventType "team-tourn"]
[EventCountry "GER"]
[SourceTitle "playchess.com"]
[Source "ChessBase"]
[SourceQuality "1"]
[TimeControl "40/6000+30:3000+30"]

{[%evp 18,92,6,0,0,-17,-7,-3,6,0,0,0,0,0,0,-4,10,-31,-30,-54,-49,-42,-50,-59,0,-35,-44,-36,-29,-27,-17,-34,-16,-31,-31,-27,-48,-81,-23,-32,0,-110,-117,-110,-45,-52,-37,-91,-106,-99,-95,-90,0,-58,0,-75,-36,-49,-31,-33,-14,-29,-32,-32,-18,-12,-26,-12,-29,-20,-17,-19,-7,-7,0,0,0]} 1. e4 {[%emt 0:00:03]} c6 {[%emt 0:00:11]} 2. d4 {[%emt 0:00:06]} d5 {[%emt 0:00:11]} 3. e5 {[%emt 0:00:07]} Bf5 {[%emt 0:00:11]} 4. Bd3 {[%emt 0:00:31]} Bxd3 {[%emt 0:02:03]} 5. Qxd3 {[%emt 0:00:05]} Qa5+ {[%emt 0:04:39]} 6. c3 {[%emt 0:01:12]} Qa6 {[%emt 0:05:08] B12: Caro-Kann: Advance Variation.} 7. Qd1 $1 {[%emt 0:00:20][%mdl 4] is now more promising than 7.Qxa6.} e6 {[%emt 0:01:05]} 8. Ne2 {[%emt 0:00:04]} Ne7 {[%emt 0:02:28]} 9. O-O {[%emt 0:01:57]} Nd7 {[%emt 0:00:41]} 10. b4 {[%emt 0:07:42]} Qb6 {[%emt 0:06:34]} 11. Nd2 {[%emt 0:04:03]} a5 {[%emt 0:02:44]} 12. a3 $146 {[%emt 0:01:46]} ({Predecessor:} 12. bxa5 Qxa5 13. Nb3 Qb5 14. Bg5 h6 15. Bxe7 Bxe7 16. Qc2 O-O 17. Rfb1 Qa4 18. Qd2 {0-1 Wilms,R-Fraas,H (2158) Hamburg-ch int 10th 2007 (2)}) 12... Qc7 {[%emt 0:11:36]} 13. a4 {[%emt 0:11:07]} Nf5 {[%emt 0:07:53]} 14. Rb1 {[%emt 0:05:22]} axb4 {[%emt 0:04:49]} 15. cxb4 {[%emt 0:00:05]} Be7 {[%emt 0:00:26]} 16. Qc2 {[%emt 0:25:05]} h5 {[%emt 0:07:37]} 17. a5 {[%emt 0:03:06]} b6 {[%emt 0:06:17]} 18. b5 {[%emt 0:05:24]} bxa5 {[%emt 0:02:51]} 19. bxc6 {[%emt 0:08:16]} (19. Qxc6 Qxc6 20. bxc6 Nb8 $17) 19... Nb6 {[%emt 0:00:56]} 20. Qb3 {[%emt 0:04:44]} Rb8 {[%emt 0:00:55]} (20... Nc8 $1 $15 21. Qb7 Ra7) 21. Qa2 {[%emt 0:02:59]} Qxc6 {[%emt 0:04:52]} 22. Qxa5 {[%emt 0:00:13]} O-O {[%emt 0:00:35]} 23. Qa6 {[%emt 0:02:38]} Rfc8 {[%emt 0:01:55]} 24. Nf3 {[%emt 0:02:16]} Qc4 {[%emt 0:04:29]} 25. Rxb6 {[%emt 0:00:15]} (25. Qxc4 {simplifies} Nxc4 26. Bf4 g6 27. h3) 25... Rxb6 {[%emt 0:00:07]} 26. Qxb6 {[%emt 0:00:02]} Qxe2 {[%emt 0:00:11]} 27. Bd2 {[%emt 0:06:32] [#]} Kh7 {[%emt 0:08:57]} (27... Rc4 $1 $17 {[%cal Of5d4] ...Nxd4! would now be deadly.} 28. Bg5 Rb4) 28. Bg5 $11 {[%emt 0:02:31]} Qc2 {[%emt 0:06:38]} 29. Be3 {[%emt 0:00:18] [#]} (29. Bxe7 $11 Nxe7 30. h3 (30. Qb7 Qc7 $11)) 29... Rc3 $1 $17 {[%emt 0:02:29]} 30. Qb1 {[%emt 0:02:13]} Qxb1 {[%emt 0:02:39]} (30... Nxe3 $17 31. fxe3 Qe4 (31... Qxb1 32. Rxb1 Ba3 33. Kf1 $15) 32. Qxe4+ dxe4) 31. Rxb1 $15 {[%emt 0:00:03]} Kg6 {[%emt 0:00:44]} 32. Re1 {[%emt 0:06:32]} ({White should try} 32. Rc1 $15 Rb3 33. Bd2) 32... Bb4 $17 {[%emt 0:02:00]} 33. Rb1 {[%emt 0:02:03]} Ba3 {[%emt 0:01:05]} 34. Re1 {[%emt 0:01:12]} Bb4 {[%emt 0:05:25]} 35. Rb1 $1 {[%emt 0:00:05]} Be7 {[%emt 0:00:16]} 36. Re1 {[%emt 0:00:40]} Bd8 {[%emt 0:01:53]} 37. Kf1 {[%emt 0:00:57]} Rb3 {[%emt 0:01:26]} 38. h3 {[%emt 0:02:42]} h4 {[%emt 0:00:59]} 39. Ke2 {[%emt 0:02:27]} Rb2+ {[%emt 0:01:03]} 40. Kf1 {[%emt 0:01:25]} Bb6 {[%emt 0:02:35]} 41. Re2 {[%emt 0:02:26]} Rb1+ {[%emt 0:06:11]} 42. Re1 {[%emt 0:00:09]} Rb4 {[%emt 0:00:08]} 43. Rd1 $1 {[%emt 0:00:20]} f6 {[%emt 0:01:13]} 44. Ke2 {[%emt 0:01:33]} Rc4 {[%emt 0:03:47]} 45. Kd3 {[%emt 0:04:37]} Bc7 {[%emt 0:01:03]} 46. Ra1 {[%emt 0:05:48]} Rc6 {[%emt 0:11:26]} 1/2-1/2

[Event "German Bundesliga 2023-24"]
[Site "Germany"]
[Date "2024.03.16"]
[Round "12.2"]
[White "Svane, Frederik"]
[Black "Plat, Vojtech"]
[Result "1/2-1/2"]
[ECO "B31"]
[WhiteElo "2626"]
[BlackElo "2503"]
[Annotator "TA"]
[PlyCount "104"]
[EventDate "2023.10.20"]
[EventType "team-tourn"]
[EventCountry "GER"]
[SourceTitle "playchess.com"]
[Source "ChessBase"]
[SourceQuality "1"]
[TimeControl "40/6000+30:3000+30"]

{[%evp 12,104,27,10,22,14,33,51,53,52,73,75,60,56,70,31,59,62,68,39,43,57,42,39,53,47,40,50,61,52,55,64,57,22,28,25,29,32,29,23,21,23,25,19,19,27,16,12,12,17,17,17,25,0,0,0,12,12,14,14,14,15,21,12,12,0,0,0,0,0,0,0,0,0,0,0,0,0,0,0,0,0,0,0,0,0,0,0,0,0,0,0,0,0,0]} 1. e4 {[%emt 16:30:18]} c5 {[%emt 0:00:26]} 2. Nf3 {[%emt 0:00:10]} Nc6 {[%emt 0:00:05]} 3. Bb5 {[%emt 0:00:06]} g6 {[%emt 0:00:19]} 4. O-O {[%emt 0:00:08]} Bg7 {[%emt 0:00:13]} 5. c3 {[%emt 0:00:07][%cal Bc2c3,Bc3d4,Bd4e5][%mdl 32]} a6 {[%emt 0:00:37]} 6. Bxc6 {[%emt 0:04:03]} dxc6 {[%emt 0:01:04]} 7. d4 {[%emt 0:09:48]} cxd4 {[%emt 0:00:22]} 8. cxd4 {[%emt 0:00:07]} Nf6 {[%emt 0:03:55]} 9. Qc2 {[%emt 0:02:07]} O-O {[%emt 0:00:21] White is slightly better.} 10. h3 {[%emt 0:06:17]} e5 {[%emt 0:09:53]} 11. dxe5 {[%emt 0:04:24][%cal Oc1g5] [#] aiming for Bg5!} (11. Nxe5 $2 {is the wrong capture.} Qxd4 12. Qc3 Qxe4 $19) 11... Nd7 {[%emt 0:00:04]} 12. Bf4 {[%emt 0:19:54][%cal Oe5e6]} Qe7 {[%emt 0:02:02][%cal Rd7e5]} 13. Nc3 {[%emt 0:02:28]} b5 {[%emt 0:06:01][%cal Rd7e5]} 14. Rad1 {[%emt 0:05:01][%cal Oe5e6]} Nxe5 {[%emt 0:00:42]} 15. Bxe5 {[%emt 0:06:53]} Bxe5 {[%emt 0:00:05]} 16. Nxe5 {[%emt 0:00:06]} Qxe5 {[%emt 0:00:06]} 17. f4 {[%emt 0:17:55]} Qc5+ {[%emt 0:00:07]} 18. Qf2 {[%emt 0:03:46]} Qxf2+ {[%emt 0:00:10]} 19. Rxf2 {[%emt 0:00:06]} Re8 {[%emt 0:00:11]} 20. Rd6 {[%emt 0:03:23][%cal Of2d2]} Kg7 {[%emt 0:05:37]} 21. e5 {[%emt 0:05:37]} g5 {[%emt 0:03:50]} 22. Rxc6 {[%emt 0:02:50]} (22. fxg5 {seems wilder.} Rxe5 23. Rd8 Re7 24. Rf6) 22... gxf4 {[%emt 0:01:02]} 23. Rc5 {[%emt 0:00:22][%cal Oc3e4]} Be6 {[%emt 0:01:23]} 24. Rxf4 {[%emt 0:06:23]} Rec8 {[%emt 0:00:14]} 25. Rxc8 {[%emt 0:01:21]} Rxc8 $11 {[%emt 0:00:06][%mdl 4096] Endgame. KRB-KRN} 26. a3 {[%emt 0:01:02]} Rc5 {[%emt 0:00:23]} 27. Re4 {[%emt 0:00:06]} h5 {[%emt 0:01:33]} 28. Kf2 {[%emt 0:00:54]} Kg6 {[%emt 0:00:05]} 29. Kg3 {[%emt 0:03:02]} Kf5 {[%emt 0:04:05][%cal Oc5c3] [#] ...Rxc3+! would now be deadly.} 30. Rh4 {[%emt 0:01:07]} Kg6 {[%emt 0:00:16]} 31. Rd4 {[%emt 0:01:25]} Kf5 {[%emt 0:04:23]} 32. Rh4 {[%emt 0:00:19]} Kg6 {[%emt 0:00:14] The position is equal.} 33. Rd4 {[%emt 0:02:28]} Kf5 {[%emt 0:00:04]} 34. Rd6 {[%emt 0:01:35]} Rc4 {[%emt 0:03:22]} 35. Rxa6 {[%emt 0:00:55] And now Rb6 would win.} b4 {[%emt 0:00:05]} 36. axb4 {[%emt 0:01:45]} Rxb4 {[%emt 0:00:21]} 37. Nd1 {[%emt 0:00:26]} h4+ {[%emt 0:02:29]} 38. Kf2 {[%emt 0:00:19]} Kxe5 {[%emt 0:01:34]} 39. Ra5+ {[%emt 0:00:30]} Kf6 {[%emt 0:00:20]} 40. Kf3 {[%emt 0:00:49]} Bf5 {[%emt 0:06:42]} 41. Nc3 {[%emt 0:06:51] Threatens to win with Nd5+.} Rxb2 {[%emt 0:00:53]} 42. Nd5+ {[%emt 0:00:05]} Kg7 {[%emt 0:00:04]} 43. Ne3 {[%emt 0:05:58]} Bc8 {[%emt 0:00:09]} 44. Nf5+ {[%emt 0:07:18]} Bxf5 {[%emt 0:00:08]} 45. Rxf5 {[%emt 0:00:04] KR-KR} Rb3+ {[%emt 0:00:05]} 46. Kg4 {[%emt 0:00:08]} Rg3+ {[%emt 0:00:07]} 47. Kxh4 {[%emt 0:00:04]} Rxg2 {[%emt 0:00:03]} 48. Rg5+ {[%emt 0:00:06]} Rxg5 {[%emt 0:00:03]} 49. Kxg5 {[%emt 0:00:05]} f6+ {[%emt 0:00:01]} 50. Kf5 {[%emt 0:00:06]} Kh6 {[%emt 0:00:02]} 51. Kxf6 {[%emt 0:00:07]} Kh5 52. h4 {[%emt 0:00:07]} Kxh4 {[%emt 0:00:08] Weighted Error Value: White=0.04 (flawless) /Black=0.03 (flawless) .  Inaccurate:     	White=3     	Black=1      OK:         	White=22    	Black=24     Best:        	---       	Black=6} 1/2-1/2

[Event "German Bundesliga 2023-24"]
[Site "Germany"]
[Date "2024.03.16"]
[Round "12.3"]
[White "Kryvoruchko, Yuriy"]
[Black "Pechac, Jergus"]
[Result "1/2-1/2"]
[ECO "C60"]
[WhiteElo "2656"]
[BlackElo "2580"]
[Annotator "TA"]
[PlyCount "76"]
[EventDate "2023.10.20"]
[EventType "team-tourn"]
[EventCountry "GER"]
[SourceTitle "playchess.com"]
[Source "ChessBase"]
[SourceQuality "1"]
[TimeControl "40/6000+30:3000+30"]

{[%evp 9,76,20,31,19,30,37,33,18,22,22,20,5,36,10,14,13,24,7,33,35,47,32,50,35,23,35,28,52,49,25,33,32,33,26,33,42,40,25,37,13,41,43,58,46,42,42,41,14,20,18,20,18,24,17,21,18,13,0,0,0,0,0,0,0,0,0,0,0,0]} 1. e4 {[%emt 0:00:04]} e5 {[%emt 0:00:09]} 2. Nf3 {[%emt 0:00:05]} Nc6 {[%emt 0:00:05]} 3. Bb5 {[%emt 0:00:06]} Nge7 {[%emt 0:00:05]} 4. Nc3 {[%emt 0:00:29]} Ng6 {[%emt 0:00:12]} 5. d4 {[%emt 0:00:37]} exd4 {[%emt 0:00:06]} 6. Nxd4 {[%emt 0:00:04]} Nxd4 {[%emt 0:00:07]} 7. Qxd4 {[%emt 0:00:04][%cal Oh2h4]} c6 {[%emt 0:00:05]} 8. Be2 {[%emt 0:00:15] White is slightly better.} Qb6 $1 {[%emt 0:00:05]} 9. Qd3 {[%emt 0:00:30]} Be7 {[%emt 0:00:07]} 10. O-O {[%emt 0:00:51]} O-O {[%emt 0:00:05]} 11. a4 {[%emt 0:00:23]} d6 {[%emt 0:00:07]} 12. a5 {[%emt 0:01:23]} Qc7 {[%emt 0:00:06]} 13. f4 {[%emt 0:00:35]} Bd7 {[%emt 0:00:10]} 14. Be3 {[%emt 0:01:38]} Rfe8 {[%emt 0:00:08]} 15. Qc4 {[%emt 0:02:42]} Qc8 {[%emt 0:00:06][%cal Od6d5]} 16. Rad1 {[%emt 0:04:12]} b5 {[%emt 0:00:06]} 17. axb6 {[%emt 0:05:01]} axb6 {[%emt 0:00:21]} 18. Bxb6 {[%emt 0:03:04]} Rb8 {[%emt 0:00:19][%cal Ba8b8,Bb8b2,Bb2a2][%mdl 32]} 19. Be3 {[%emt 0:03:04]} (19. Bd4 $5) 19... Rxb2 {[%emt 0:00:09]} 20. Na4 {[%emt 0:01:34]} d5 {[%emt 0:00:06]} 21. Qd3 {[%emt 0:04:34]} (21. exd5 $2 {is the wrong capture.} Rb4 22. Nb6 Rxc4 $19) 21... Ra2 {[%emt 0:00:40]} 22. Nb6 {[%emt 0:01:39]} Qc7 {[%emt 0:00:09]} 23. Nxd7 {[%emt 0:04:09]} Qxd7 {[%emt 0:00:06]} 24. e5 {[%emt 0:02:50]} f6 {[%emt 0:00:06]} 25. Bh5 {[%emt 0:13:17] This pair of bishops is nice.} Rf8 {[%emt 0:00:07]} 26. Bxg6 {[%emt 0:05:40]} hxg6 {[%emt 0:00:07]} 27. Qxg6 {[%emt 0:00:07]} Qe8 {[%emt 0:00:04]} 28. Qd3 {[%emt 0:05:12]} Ra3 {[%emt 0:23:37]} (28... fxe5 {is interesting.} 29. fxe5 Qh5 30. Bd4 Ra3) 29. c3 {[%emt 0:14:02]} fxe5 {[%emt 0:06:53]} 30. fxe5 {[%emt 0:00:06]} Qh5 {[%emt 0:04:32]} 31. Rxf8+ {[%emt 0:02:35]} Bxf8 {[%emt 0:00:29] The position is equal.} 32. Rf1 {[%emt 0:00:27][%cal Of1f8]} Be7 {[%emt 0:02:50]} (32... Qxe5 $2 {too greedy.} 33. Rxf8+ Kxf8 34. Bc5+ Kg8 35. Bxa3 $18) 33. h3 {[%emt 0:17:50]} Qxe5 {[%emt 0:01:01]} 34. Bd4 {[%emt 0:00:06]} Qe4 {[%emt 0:01:01]} 35. Qxe4 {[%emt 0:01:19]} dxe4 {[%emt 0:00:05]} 36. Re1 {[%emt 0:00:15]} c5 {[%emt 0:00:34]} 37. Rxe4 {[%emt 0:02:38] [#] Bxg7 would now be deadly.} cxd4 {[%emt 0:00:07]} 38. Rxe7 {[%emt 0:00:03]} dxc3 {[%emt 0:00:12] Weighted Error Value: White=0.07 (flawless) /Black=0.04 (flawless) .  Inaccurate:     	White=2     	Black=2      OK:         	White=15    	Black=16     Best:        	White=1     	Black=2      Strong:       	---       	Black=1} 1/2-1/2